[Event "CCT Julius Baer-D2 2024"]
[Site "Online"]
[Date "2024.09.27"]
[Round "1.2"]
[White "Beca95"]
[Black "Martinez, Jose"]
[Result "0-1"]
[ECO "E38"]
[WhiteElo "2627"]
[BlackElo "2723"]
[Annotator "NA"]
[PlyCount "88"]
[EventDate "2024.09.25"]
[EventType "swiss"]
[EventCountry "NET"]
[SourceTitle "playchess.com"]
[Source "ChessBase"]
[SourceQuality "1"]
[TimeControl "600+2"]

1. d4 {[%emt 0:00:04]} Nf6 {[%emt 0:00:05]} 2. c4 {[%emt 0:00:01]} e6 {[%emt 0:00:04]} 3. Nc3 {[%emt 0:00:01]} Bb4 {[%emt 0:00:00]} 4. Qc2 {[%emt 0:00:01]} c5 {[%emt 0:00:03]} 5. dxc5 {[%emt 0:00:02]} Na6 {[%emt 0:00:03]} 6. a3 {[%emt 0:00:07]} Bxc3+ {[%emt 0:00:04]} 7. Qxc3 {[%emt 0:00:00]} Nxc5 {[%emt 0:00:01]} 8. f3 {[%emt 0:00:01]} a5 {[%emt 0:00:19]} 9. e4 {[%emt 0:00:06]} d6 {[%emt 0:00:01]} 10. Be3 {[%emt 0:00:10]} Qc7 {[%emt 0:00:07]} 11. Nh3 {[%emt 0:00:05]} a4 {[%emt 0:00:05]} 12. Nf4 {[%emt 0:00:14]} O-O {[%emt 0:00:04]} 13. Rc1 {[%emt 0:00:08]} Bd7 {[%emt 0:00:04]} 14. Be2 {[%emt 0:00:02]} Rfc8 {[%emt 0:00:06]} 15. O-O {[%emt 0:00:02]} e5 {[%emt 0:00:18]} 16. Nd5 {[%emt 0:00:11]} Nxd5 {[%emt 0:00:00]} 17. cxd5 {[%emt 0:00:01]} Qd8 {[%emt 0:00:01]} 18. Qb4 {[%emt 0:00:02]} b6 {[%emt 0:00:00]} 19. g4 {[%emt 0:00:17]} Rab8 {[%emt 0:00:15]} 20. Kg2 {[%emt 0:00:06]} Rc7 {[%emt 0:00:21]} 21. Rc2 {[%emt 0:00:06]} Rcc8 {[%emt 0:00:22]} 22. Rfc1 {[%emt 0:00:05]} Qe7 {[%emt 0:00:06]} 23. Qe1 {[%emt 0:00:02]} Rf8 {[%emt 0:00:08]} 24. h4 {[%emt 0:00:04]} h5 {[%emt 0:00:30]} 25. g5 {[%emt 0:00:25]} Kh7 {[%emt 0:00:45]} 26. Kh2 {[%emt 0:00:03]} f5 {[%emt 0:00:04]} 27. Rc4 {[%emt 0:01:00]} fxe4 {[%emt 0:00:15]} 28. fxe4 {[%emt 0:00:03]} Bg4 {[%emt 0:00:01]} 29. Qd1 {[%emt 0:00:03]} Qd7 {[%emt 0:00:08]} 30. Kg3 {[%emt 0:00:01]} Bxe2 {[%emt 0:00:49]} 31. Qxe2 {[%emt 0:00:03]} g6 {[%emt 0:00:00]} 32. Rb4 {[%emt 0:00:07]} Rf7 {[%emt 0:00:15]} 33. Bxc5 {[%emt 0:00:42]} dxc5 {[%emt 0:00:01]} 34. Rxc5 {[%emt 0:00:01]} Rf4 {[%emt 0:01:22]} 35. Rc6 {[%emt 0:00:13]} Rg4+ {[%emt 0:00:32]} 36. Kf2 {[%emt 0:00:03]} Rxh4 {[%emt 0:00:02]} 37. Ke1 {[%emt 0:00:10]} Rh1+ {[%emt 0:00:41]} 38. Kd2 {[%emt 0:00:01]} Qh3 {[%emt 0:00:01]} 39. Rf6 {[%emt 0:01:56]} Qg3 {[%emt 0:00:18]} 40. Qf3 {[%emt 0:00:50]} Qe1+ {[%emt 0:01:16]} 41. Kd3 {[%emt 0:00:03]} Qb1+ {[%emt 0:00:01]} 42. Kc4 {[%emt 0:00:01]} Rc1+ {[%emt 0:00:00]} 43. Kb5 {[%emt 0:00:01]} Rc5+ {[%emt 0:00:01]} 44. Kxa4 {[%emt 0:00:00]} Qc2+ {[%emt 0:00:01]} 0-1

[Event "CCT Julius Baer-D2 2024"]
[Site "Online"]
[Date "2024.09.27"]
[Round "1.3"]
[White "So, Wesley"]
[Black "Yakubboev, Nodirbek"]
[Result "1-0"]
[ECO "C56"]
[WhiteElo "2819"]
[BlackElo "2675"]
[Annotator "TA"]
[PlyCount "115"]
[EventDate "2024.09.25"]
[EventType "swiss"]
[EventCountry "NET"]
[SourceTitle "playchess.com"]
[Source "ChessBase"]
[SourceQuality "1"]
[TimeControl "600+2"]

{[%evp 39,115,108,139,60,62,66,66,66,78,43,94,76,64,56,85,34,75,46,70,10,3,8,44,24,43,53,57,4,136,136,156,162,153,11,114,114,120,114,137,122,134,138,132,115,114,112,112,114,104,55,139,123,130,132,206,206,184,183,402,370,761,737,570,495,1984,1795,1460,1881,29949,29951,29951,29954,29957,29958,29962,29952,6070,5810]} 1. e4 {[%emt 0:00:02]} e5 {[%emt 0:00:05]} 2. Nf3 {[%emt 0:00:03]} Nc6 {[%emt 0:00:01]} 3. Bc4 {[%emt 0:00:02]} d6 {[%emt 0:00:05]} 4. d4 {[%emt 0:00:21]} Nf6 {[%emt 0:00:04]} 5. O-O {[%emt 0:00:49]} Bg4 {[%emt 0:01:22]} 6. dxe5 {[%emt 0:01:28] C56: Two Knights: 4 d4 exd4 5 0-0 Nxe4.} dxe5 {[%emt 0:00:55]} 7. Nbd2 {[%emt 0:00:07]} Bd6 $146 {[%emt 0:00:34]} ({Predecessor:} 7... Bc5 8. c3 O-O 9. Re1 h6 10. Qe2 Re8 11. Nf1 Na5 12. Bb5 c6 13. Ba4 b5 {1-0 Sanabria,M (1463)-Cantero Acuna,L Ciudad del Este op 5th 2015 (7.18)}) 8. h3 {[%emt 0:00:11]} Bh5 {[%emt 0:00:08]} 9. c3 {[%emt 0:00:05]} O-O {[%emt 0:00:04]} 10. Re1 {[%emt 0:00:02]} Nd7 {[%emt 0:01:27]} 11. Nf1 {[%emt 0:00:15]} Kh8 {[%emt 0:00:16]} 12. Ng3 {[%emt 0:00:10]} Bg6 {[%emt 0:00:02]} 13. h4 {[%emt 0:00:07]} h6 {[%emt 0:00:05]} 14. h5 {[%emt 0:00:32]} Bh7 {[%emt 0:00:02]} 15. Be3 {[%emt 0:00:18]} Ne7 {[%emt 0:00:44]} 16. Nh4 {[%emt 0:00:15]} Nf6 {[%emt 0:00:20]} 17. Qf3 {[%emt 0:00:04]} Nfg8 {[%emt 0:01:18]} 18. Rad1 {[%emt 0:00:09]} Qe8 {[%emt 0:00:07]} 19. Rd3 {[%emt 0:00:38]} a5 {[%emt 0:00:52]} 20. a3 {[%emt 0:00:10]} g5 {[%emt 0:00:46]} 21. Nhf5 {[%emt 0:00:24]} (21. hxg6 $1 $16 fxg6 22. Qg4) 21... Bxf5 $14 {[%emt 0:00:05]} 22. Nxf5 {[%emt 0:00:00]} Nxf5 {[%emt 0:00:01]} 23. Qxf5 {[%emt 0:00:02]} Qc8 {[%emt 0:00:01]} 24. Qf3 {[%emt 0:00:34]} (24. Bxf7 $2 {too greedy.} Qxf5 25. exf5 Rxf7 $19) 24... g4 {[%emt 0:00:35]} (24... Kg7 $14) 25. Qe2 {[%emt 0:00:39]} f5 {[%emt 0:00:02]} 26. exf5 {[%emt 0:00:42]} (26. g3 {is more complex.} fxe4 27. Rd2 Qf5 28. Red1) 26... Qxf5 {[%emt 0:00:01]} 27. Bxg8 {[%emt 0:00:03]} (27. Red1 $16) 27... Rxg8 {[%emt 0:00:07]} 28. Bxh6 {[%emt 0:00:00]} Rae8 {[%emt 0:00:32]} 29. Qe4 {[%emt 0:00:31]} ({White should try} 29. c4 $14) 29... Qxh5 $11 {[%emt 0:00:02]} 30. Bd2 {[%emt 0:00:02]} Re7 {[%emt 0:00:07]} (30... Ref8 {looks sharper.} 31. b4 Rg7 32. c4 axb4 33. axb4 Rh7) 31. Rg3 {[%emt 0:00:14]} Rh7 {[%emt 0:00:02]} (31... Rf7 {is more complex.} 32. b4 b6 33. c4 axb4 34. axb4 Rg6) 32. Kf1 $1 {[%emt 0:00:02]} b6 {[%emt 0:00:06]} 33. c4 {[%emt 0:00:04]} (33. b4 $14) 33... Qh4 {[%emt 0:00:06]} (33... Rf7 $1 $11 {remains equal.}) 34. Bc3 $16 {[%emt 0:00:08]} Rg5 {[%emt 0:00:02]} 35. Qa8+ {[%emt 0:00:21]} Kg7 {[%emt 0:00:02]} 36. Qe8 {[%emt 0:00:25]} (36. Re4 $16) 36... Qh5 {[%emt 0:00:01] [#]} (36... Qh1+ $1 $11 37. Ke2 Qh5 38. Qxh5 Rhxh5) 37. Qxh5 $1 $16 {[%emt 0:00:39]} Rhxh5 {[%emt 0:00:00]} 38. Re4 {[%emt 0:00:01]} Rh4 {[%emt 0:00:01] [#]} 39. f4 $1 {[%emt 0:00:17]} Rf5 {[%emt 0:00:02]} 40. Ke2 $1 {[%emt 0:00:01]} Rhh5 {[%emt 0:00:06]} 41. Rxg4+ {[%emt 0:00:09]} Kf7 {[%emt 0:00:01]} 42. fxe5 {[%emt 0:00:05]} Bxe5 {[%emt 0:00:01]} 43. Bxe5 {[%emt 0:00:03]} Rxe5 {[%emt 0:00:00]} 44. Rgf4+ {[%emt 0:00:03]} (44. a4 $16) 44... Kg6 {[%emt 0:00:03]} (44... Ke6 $14) 45. Rxe5 $16 {[%emt 0:00:03]} Rxe5+ {[%emt 0:00:01]} 46. Kd3 {[%emt 0:00:00]} Rg5 {[%emt 0:00:01]} (46... Re1 $16 47. Rf2 Rh1) 47. g4 $18 {[%emt 0:00:05]} Rc5 {[%emt 0:00:06]} 48. b4 {[%emt 0:00:02]} axb4 $2 {[%emt 0:00:01]} (48... Rg5 {might work better.} 49. b5 Kg7) 49. axb4 $18 {[%emt 0:00:00]} Rc6 $2 {[%emt 0:00:01]} (49... Rg5 50. Ke4 Kg7) 50. Kd4 {[%emt 0:00:05]} Rd6+ {[%emt 0:00:04]} 51. Ke5 {[%emt 0:00:01]} Rd2 {[%emt 0:00:03]} (51... Rd7 $142 52. Rf5 Rh7) 52. Rd4 $18 {[%emt 0:00:01]} Re2+ {[%emt 0:00:02]} 53. Kd5 {[%emt 0:00:02]} Kg5 {[%emt 0:00:04]} 54. Kc6 {[%emt 0:00:01]} Re7 {[%emt 0:00:00]} 55. c5 {[%emt 0:00:01]} bxc5 {[%emt 0:00:02]} 56. bxc5 {[%emt 0:00:00]} Rf7 {[%emt 0:00:03]} 57. Kb7 {[%emt 0:00:02]} Re7 {[%emt 0:00:03]} 58. c6 {[%emt 0:00:01]} 1-0

[Event "CCT Julius Baer-D2 2024"]
[Site "Online"]
[Date "2024.09.27"]
[Round "1.3"]
[White "Martinez, Jose"]
[Black "Beca95"]
[Result "1-0"]
[ECO "C70"]
[WhiteElo "2729"]
[BlackElo "2621"]
[Annotator "NA"]
[PlyCount "71"]
[EventDate "2024.09.25"]
[EventType "swiss"]
[EventCountry "NET"]
[SourceTitle "playchess.com"]
[Source "ChessBase"]
[SourceQuality "1"]
[TimeControl "600+2"]

1. e4 {[%emt 0:00:02]} e5 {[%emt 0:00:03]} 2. Nf3 {[%emt 0:00:01]} Nc6 {[%emt 0:00:01]} 3. Bb5 {[%emt 0:00:00]} a6 {[%emt 0:00:02]} 4. Ba4 {[%emt 0:00:00]} Bc5 {[%emt 0:00:01]} 5. c3 {[%emt 0:00:01]} Nge7 {[%emt 0:00:01]} 6. d4 {[%emt 0:00:00]} exd4 {[%emt 0:00:01]} 7. cxd4 {[%emt 0:00:00]} Bb4+ {[%emt 0:00:01]} 8. Bd2 {[%emt 0:00:00]} Bxd2+ {[%emt 0:00:01]} 9. Nbxd2 {[%emt 0:00:00]} d5 {[%emt 0:00:01]} 10. e5 {[%emt 0:00:01]} O-O {[%emt 0:00:02]} 11. O-O {[%emt 0:00:00]} f6 {[%emt 0:00:01]} 12. Re1 {[%emt 0:00:01]} fxe5 {[%emt 0:00:01]} 13. dxe5 {[%emt 0:00:00]} Bg4 {[%emt 0:00:02]} 14. Bxc6 {[%emt 0:00:03]} Nxc6 {[%emt 0:00:02]} 15. Qb3 {[%emt 0:00:00]} Rb8 {[%emt 0:00:01]} 16. Rac1 {[%emt 0:00:01]} Kh8 {[%emt 0:00:01]} 17. h3 {[%emt 0:00:02]} Be6 {[%emt 0:00:02]} 18. Qa3 {[%emt 0:00:13]} h6 {[%emt 0:00:07]} 19. Rxc6 {[%emt 0:00:53]} bxc6 {[%emt 0:00:03]} 20. Nd4 {[%emt 0:00:01]} Qe8 {[%emt 0:00:02]} 21. N2b3 {[%emt 0:00:39]} Bxh3 {[%emt 0:00:30]} 22. Nc5 {[%emt 0:00:52]} Bc8 {[%emt 0:00:22]} 23. e6 {[%emt 0:00:01]} Rb6 {[%emt 0:00:08]} 24. Qc3 {[%emt 0:01:09]} a5 {[%emt 0:00:19]} 25. b3 {[%emt 0:00:20]} Rf6 {[%emt 0:00:18]} 26. Qxa5 {[%emt 0:00:08]} Rf4 {[%emt 0:00:01]} 27. Qd2 {[%emt 0:00:07]} Rf8 {[%emt 0:00:08]} 28. a4 {[%emt 0:00:01]} Qe7 {[%emt 0:00:01]} 29. Qc3 {[%emt 0:00:22]} Qf6 {[%emt 0:00:04]} 30. Re2 {[%emt 0:00:04]} Re8 {[%emt 0:00:02]} 31. Re3 {[%emt 0:00:05]} Rb8 {[%emt 0:00:22]} 32. b4 {[%emt 0:01:10]} Ra8 {[%emt 0:00:17]} 33. a5 {[%emt 0:00:05]} Kg8 {[%emt 0:00:03]} 34. Rf3 {[%emt 0:00:15]} Qe5 {[%emt 0:00:02]} 35. Nd3 {[%emt 0:00:13]} Qg5 {[%emt 0:00:01]} 36. Qxc6 {[%emt 0:00:32]} 1-0

[Event "CCT Julius Baer-D2 2024"]
[Site "Online"]
[Date "2024.09.27"]
[Round "1.3"]
[White "Vidit, Santosh Gujrathi"]
[Black "Robson, Ray"]
[Result "1-0"]
[ECO "B87"]
[WhiteElo "2720"]
[BlackElo "2700"]
[Annotator "TA"]
[PlyCount "101"]
[EventDate "2024.09.25"]
[EventType "swiss"]
[EventCountry "NET"]
[SourceTitle "playchess.com"]
[Source "ChessBase"]
[SourceQuality "1"]
[TimeControl "600+2"]

{[%evp 14,101,0,0,0,0,0,-14,9,15,68,0,0,-11,0,0,0,0,41,62,60,53,78,63,57,64,68,68,100,71,256,54,64,-16,-20,-15,-13,-5,-5,-30,-71,-287,-304,-614,-299,-297,-80,-226,-154,-278,-282,-254,-202,-641,-287,-287,-293,-294,-206,-197,-215,-212,-171,-188,-64,-64,0,0,0,-8,-8,-8,-8,-8,-8,-50,-8,-83,-8,-83,-8,-145,0,0,0,-8,0,-8,0,0]} 1. e4 {[%emt 0:00:02]} c5 {[%emt 0:00:10]} 2. Nf3 {[%emt 0:00:02]} d6 {[%emt 0:00:01]} 3. d4 {[%emt 0:00:00]} cxd4 {[%emt 0:00:00]} 4. Nxd4 {[%emt 0:00:00]} Nf6 {[%emt 0:00:01]} 5. Nc3 {[%emt 0:00:00]} a6 {[%emt 0:00:00]} 6. Bc4 {[%emt 0:00:01]} e6 {[%emt 0:00:01]} 7. Be3 {[%emt 0:00:01]} b5 {[%emt 0:00:06]} 8. Bb3 {[%emt 0:00:01]} Qc7 {[%emt 0:00:29]} 9. Qe2 {[%emt 0:00:10]} Be7 {[%emt 0:00:14]} 10. O-O-O {[%emt 0:00:10]} Bd7 {[%emt 0:00:46]} 11. a3 $1 {[%emt 0:00:13]} Nc6 {[%emt 0:00:10]} (11... O-O $11) 12. f4 {[%emt 0:00:50] White is more active.} (12. g4 $1 $14) 12... Na5 $11 {[%emt 0:00:39]} 13. Kb1 {[%emt 0:00:21]} Nxb3 {[%emt 0:00:24]} 14. cxb3 {[%emt 0:00:00]} Qb7 {[%emt 0:00:33]} 15. Bc1 {[%emt 0:00:20]} Rc8 {[%emt 0:00:24][%cal Oc8c3]} 16. e5 {[%emt 0:00:51]} dxe5 {[%emt 0:00:26]} 17. fxe5 {[%emt 0:00:00]} Rxc3 {[%emt 0:00:38]} 18. bxc3 {[%emt 0:00:16]} Nd5 {[%emt 0:00:14]} 19. Rd3 {[%emt 0:00:08]} O-O {[%emt 0:00:23]} 20. Rf1 {[%emt 0:00:51]} Qc7 {[%emt 0:00:41]} 21. Bd2 {[%emt 0:00:37]} Bxa3 $2 {[%emt 0:01:12]} (21... Rc8 $16 {was necessary.}) 22. Qh5 $2 {[%emt 0:00:08]} ({White must play} 22. Rh3 $1 $18) 22... g6 $14 {[%emt 0:00:13]} 23. Qh6 {[%emt 0:00:12]} (23. Qf3 $14 f5 24. exf6 Rxf6 25. Qe2) 23... Qxe5 $11 {[%emt 0:00:11] Black wants to play ...Qe4.} 24. Rh3 {[%emt 0:00:03][%csl Gh3][%cal Rh6h7] The board is on fire.} Qh8 {[%emt 0:01:01]} 25. b4 $1 {[%emt 0:02:50] [#] Strongly threatening Nc2.} a5 $1 {[%emt 0:00:42]} 26. bxa5 {[%emt 0:00:02]} e5 $36 {[%emt 0:00:11][%mdl 2048] Black has strong initiative.} 27. Nf5 {[%emt 0:00:02] [#]} Nf4 $1 $19 {[%emt 0:00:04]} (27... gxf5 28. Rg3+) (27... Bxf5+ $2 28. Rxf5 Re8 29. Qh4 $18) 28. Ne3 {[%emt 0:01:05]} (28. g4 Nxh3 (28... gxf5 29. Bxf4 exf4 30. Rxf4 $17) (28... Bxf5+ 29. gxf5 Nxh3 30. Qxh3 $11) 29. Qxh3 gxf5 30. gxf5) 28... Nxh3 {[%emt 0:00:03]} (28... Bxh3 $142 29. Nc2 Bf5 (29... Bxg2 $2 30. Rxf4 exf4 31. Nxa3 $19)) 29. gxh3 {[%emt 0:00:04]} Qg7 $2 {[%emt 0:00:10]} (29... f5 $19 {is more deadly.} 30. Rd1 Be6) 30. Nd5 {[%emt 0:00:05]} (30. Qxg7+ $17 Kxg7 31. Ng4 Bxg4 32. hxg4) 30... f6 {[%emt 0:00:12] ...Bf5+ is the strong threat.} 31. a6 {[%emt 0:00:59]} (31. Qxg7+ $17 Kxg7 32. Be3) 31... Bf5+ {[%emt 0:00:13]} 32. Rxf5 {[%emt 0:00:06]} gxf5 {[%emt 0:00:00]} 33. Qxg7+ {[%emt 0:00:30]} Kxg7 {[%emt 0:00:01][%mdl 4096] Endgame. KRB-KBN} 34. Nc7 {[%emt 0:00:01]} Kf7 {[%emt 0:00:33] Prevents Ne6} 35. a7 {[%emt 0:00:01]} Bc5 {[%emt 0:00:02]} 36. a8=Q {[%emt 0:00:03]} Rxa8 {[%emt 0:00:01]} 37. Nxa8 {[%emt 0:00:00]} f4 {[%emt 0:00:01]} 38. Kc2 {[%emt 0:00:09] [#]} f3 {[%emt 0:00:01]} (38... Bd6 $1 $19 {Threatens to win with ...f5.} 39. c4 (39. Nb6 $2 Ke6 $19) 39... b4 (39... bxc4 40. Nb6 $15) (39... f3 40. Be3 $17)) 39. Kd1 $1 $15 {[%emt 0:00:01]} e4 {[%emt 0:00:03]} (39... Bd6 $1 $15 40. Be3 Ke6 (40... e4 41. Bb6 $11)) 40. Nc7 $11 {[%emt 0:00:02]} e3 {[%emt 0:00:05] ( -> ...f2)} 41. Bxe3 {[%emt 0:00:02]} Bxe3 {[%emt 0:00:00]} 42. Nxb5 {[%emt 0:00:01] KB-KN} Ke6 {[%emt 0:00:02]} (42... f2 $5 43. Ke2 $8 Ke6 $11) 43. Ke1 {[%emt 0:00:03] Inhibits Bf2+.} Kd5 {[%emt 0:00:02]} 44. Kf1 {[%emt 0:00:02]} f5 {[%emt 0:00:02]} 45. c4+ {[%emt 0:00:02]} Kc5 {[%emt 0:00:02]} (45... Kxc4 $17 46. Nd6+ Kd3) 46. h4 {[%emt 0:00:02]} (46. Na3 $1 $11) 46... h5 {[%emt 0:00:04]} (46... Kxc4 $17 47. Nd6+ Kd5 48. Nxf5 Bc5) 47. h3 {[%emt 0:00:01]} (47. Nc7 $1 $11) 47... f2 {[%emt 0:00:03]} (47... Kxc4 $2 48. Nd6+ Kd3 49. Ne8 $19) ({Black should try} 47... f4 $1 $17 48. Nc7 Kxc4) 48. Nc7 {[%emt 0:00:02] The position is equal.} Kxc4 {[%emt 0:00:01] White must now prevent ...Kd3.} 49. Ne6 {[%emt 0:00:01]} Kd5 {[%emt 0:00:03]} (49... Kd3 $5 50. Ng7 $8 Ke4 51. Nxh5 f4 $11) 50. Ng7 {[%emt 0:00:02][%csl LRf5,LRh5]} Ke4 {[%emt 0:00:01] ...Bd4 would now be deadly.} 51. Nxh5 {[%emt 0:00:01][%mdl 32768] White used his chance.   Weighted Error Value: White=0.53/Black=0.49.  Loses game:     	White=1     	Black=1      Missed win:     	White=1     	---        Mistake:       	White=8     	Black=7      Inaccurate:     	White=1     	Black=5      OK:         	White=12    	Black=10     Best:        	White=5     	Black=1      Strong:       	White=3     	Black=1      Brilliant:      	---       	Black=1     . Loss on time!?} 1-0

[Event "CCT Julius Baer-D2 2024"]
[Site "Online"]
[Date "2024.09.27"]
[Round "1.3"]
[White "Vidit, Santosh Gujrathi"]
[Black "spicycaterpillar"]
[Result "1-0"]
[ECO "B87"]
[WhiteElo "2686"]
[BlackElo "2704"]
[Annotator "TA"]
[PlyCount "101"]
[EventDate "2024.09.25"]
[EventType "swiss"]
[EventCountry "NET"]
[SourceTitle "playchess.com"]
[Source "ChessBase"]
[SourceQuality "1"]
[TimeControl "600+2"]

{[%evp 45,101,0,0,-23,-12,-29,-41,-62,-4,-296,-260,-601,-298,-285,-116,-215,-143,-276,-250,-268,-278,-261,-262,-263,-258,-266,-175,-154,-163,-140,-155,-112,-82,-65,0,0,0,-58,-58,-61,-68,-68,-76,-99,-58,-116,-123,-116,-8,-437,-8,-8,-8,-16,-8,-8,0,0]} 1. e4 {[%emt 0:00:02]} c5 {[%emt 0:00:10]} 2. Nf3 {[%emt 0:00:02]} d6 {[%emt 0:00:01]} 3. d4 {[%emt 0:00:00]} cxd4 {[%emt 0:00:00]} 4. Nxd4 {[%emt 0:00:00]} Nf6 {[%emt 0:00:01]} 5. Nc3 {[%emt 0:00:00]} a6 {[%emt 0:00:00]} 6. Bc4 {[%emt 0:00:01]} e6 {[%emt 0:00:01]} 7. Be3 {[%emt 0:00:01]} b5 {[%emt 0:00:06]} 8. Bb3 {[%emt 0:00:01]} Qc7 {[%emt 0:00:29]} 9. Qe2 {[%emt 0:00:10]} Be7 {[%emt 0:00:14]} 10. O-O-O {[%emt 0:00:10]} Bd7 {[%emt 0:00:46]} 11. a3 {[%emt 0:00:13]} Nc6 {[%emt 0:00:10]} 12. f4 {[%emt 0:00:50]} Na5 {[%emt 0:00:39]} 13. Kb1 {[%emt 0:00:21]} Nxb3 {[%emt 0:00:24]} 14. cxb3 {[%emt 0:00:00]} Qb7 {[%emt 0:00:33]} 15. Bc1 {[%emt 0:00:20]} Rc8 {[%emt 0:00:24]} 16. e5 {[%emt 0:00:51]} dxe5 {[%emt 0:00:26]} 17. fxe5 {[%emt 0:00:00]} Rxc3 {[%emt 0:00:38]} 18. bxc3 {[%emt 0:00:16]} Nd5 {[%emt 0:00:14]} 19. Rd3 {[%emt 0:00:08]} O-O {[%emt 0:00:23]} 20. Rf1 {[%emt 0:00:51]} Qc7 {[%emt 0:00:41]} 21. Bd2 {[%emt 0:00:37]} Bxa3 {[%emt 0:01:12]} 22. Qh5 {[%emt 0:00:08]} g6 {[%emt 0:00:13]} 23. Qh6 {[%emt 0:00:12]} Qxe5 {[%emt 0:00:11]} 24. Rh3 {[%emt 0:00:03]} Qh8 $1 {[%emt 0:01:01]} 25. b4 $1 {[%emt 0:02:50]} a5 $1 {[%emt 0:00:42]} (25... e5 26. Nf5 Be6 (26... gxf5 27. Rg3+) (26... Bxf5+ $2 27. Rxf5 f6 28. Rf1 $18) 27. Qh4 $18) 26. bxa5 {[%emt 0:00:02]} e5 {[%emt 0:00:11]} 27. Nf5 $2 {[%emt 0:00:02][%mdl 8192] [#]} (27. Nc2 $1 $11 Be7 (27... Bxh3 28. Qxh3 e4 29. Nxa3 $11) 28. Rd3) 27... Nf4 $1 $19 {[%emt 0:00:04]} (27... gxf5 28. Rg3+) (27... Bxf5+ 28. Rxf5 Rd8 29. Rfh5 $18) 28. Ne3 $2 {[%emt 0:01:05]} (28. g4 Nxh3 (28... gxf5 29. Bxf4 exf4 30. Rxf4 $17) (28... Bxf5+ 29. gxf5 Nxh3 30. Qxh3 $11) 29. Qxh3 gxf5 30. gxf5) 28... Nxh3 {[%emt 0:00:03]} (28... Bxh3 $142 29. Qh4 Bxg2 30. Rxf4 exf4) 29. gxh3 $19 {[%emt 0:00:04]} Qg7 {[%emt 0:00:10]} (29... f5 $19 {and Black stays clearly on top.} 30. Rd1 Bc5) 30. Nd5 {[%emt 0:00:05]} (30. Ng4 $17 Bxg4 (30... Bf5+ $2 31. Rxf5 gxf5 32. Qxg7+ Kxg7 33. Bh6+ Kg6 34. Bxf8 $18) 31. hxg4 (31. Qxg7+ Kxg7 32. hxg4 Ra8 $17)) 30... f6 {[%emt 0:00:12]} 31. a6 {[%emt 0:00:59]} (31. Qxg7+ $17 Kxg7 32. Be3) 31... Bf5+ {[%emt 0:00:13]} 32. Rxf5 {[%emt 0:00:06]} gxf5 {[%emt 0:00:00]} 33. Qxg7+ {[%emt 0:00:30]} Kxg7 {[%emt 0:00:01]} 34. Nc7 {[%emt 0:00:01]} Kf7 {[%emt 0:00:33]} 35. a7 {[%emt 0:00:01]} Bc5 {[%emt 0:00:02]} 36. a8=Q {[%emt 0:00:03]} Rxa8 {[%emt 0:00:01]} 37. Nxa8 {[%emt 0:00:00]} f4 {[%emt 0:00:01]} 38. Kc2 {[%emt 0:00:09]} f3 {[%emt 0:00:01]} 39. Kd1 {[%emt 0:00:01]} e4 {[%emt 0:00:03]} (39... Bd6 $1 $15 40. Be3 Ke6 (40... e4 41. c4 $17)) 40. Nc7 $11 {[%emt 0:00:02]} e3 {[%emt 0:00:05]} 41. Bxe3 {[%emt 0:00:02]} (41. Bc1 $11) 41... Bxe3 $15 {[%emt 0:00:00]} 42. Nxb5 {[%emt 0:00:01]} Ke6 {[%emt 0:00:02]} 43. Ke1 {[%emt 0:00:03]} Kd5 {[%emt 0:00:02]} 44. Kf1 {[%emt 0:00:02]} f5 {[%emt 0:00:02]} 45. c4+ {[%emt 0:00:02]} ({White should try} 45. h4 $15) 45... Kc5 $17 {[%emt 0:00:02]} (45... Kxc4 $6 46. Nd6+ Kd4 47. Nxf5+ Ke4 48. Ng3+ Ke5 49. Nh5 $11) 46. h4 {[%emt 0:00:02]} h5 {[%emt 0:00:04]} (46... Kxc4 $17 47. Nd6+ Kd5 48. Nxf5 Bc5) 47. h3 $2 {[%emt 0:00:01][%mdl 8192]} (47. Nc7 $1 $11) 47... f2 $2 {[%emt 0:00:03]} (47... Kxc4 $19 48. Nd6+ Kd5 49. Nxf5 Bd4 50. Nxd4 Kxd4 51. Kf2 Ke4 52. Kf1 Ke5 (52... Ke3 {leads to mate.} 53. Ke1 Ke4 54. Kf1 Kf5 55. Kg1 Ke5 56. Kf1 Ke4 57. Kf2 Kf4 58. Kf1 Kg3 59. Kg1 Kxh3 60. Kf2 Kg4 61. Kf1 Kxh4 62. Kf2 Kg4 63. Ke3 Kg3 64. Kd3 h4 65. Ke4 h3 66. Ke5 f2 67. Kf6 h2 68. Kf7 f1=Q+ 69. Ke7 h1=Q 70. Kd6 Qf6+ 71. Kc5 Qhc6+ 72. Kb4 Qfc3#) 53. Ke1 Kf5 54. Kf1 Ke4 55. Kf2 Kf4 56. Kf1 Kg3 57. Kg1 Kxh3 58. Kf2 Kg4 59. Kf1 Kxh4 (59... Kg3 {is a self mate.} 60. Kg1 Kxh4 61. Kf2 Kg4 62. Ke3 h4 63. Kf2 h3 64. Kg1 Kf4 65. Kf2 h2 66. Ke1 h1=Q+ 67. Kd2 f2 68. Kc3 f1=Q 69. Kb4 Qb7+ 70. Kc3 Qc1+ 71. Kd4 Qe4#) 60. Kf2 Kg4 61. Ke3 h4 (61... Kg3 62. Ke4 f2 63. Kf5 h4 64. Kf6 h3 65. Ke6 f1=Q 66. Ke5 h2 67. Kd6 h1=Q 68. Kc5 Qb7 69. Kd4 Qbb5 70. Ke4 Qf4#) 62. Kf2 h3 63. Kg1 Kf4 (63... h2+ {gets mated.} 64. Kxh2 Kf4 65. Kh3 Ke3 66. Kg4 f2 67. Kf5 f1=Q+ 68. Ke5 Qd3 69. Kf6 Qd6+ 70. Kg7 Qe7+ 71. Kh8 Kf4 72. Kg8 Kg5 73. Kh8 Kh6 74. Kg8 Qg7#) 64. Kf1 h2 65. Kf2 Ke4 66. Ke1 f2+ (66... h1=R+ 67. Kf2 Rh3 68. Ke1 Rh2 69. Kd1 Re2 70. Kc1 f2 71. Kd1 f1=Q#) (66... h1=Q+ 67. Kd2 Qh2+ 68. Kc3 f2 69. Kc4 f1=Q+ 70. Kc3 Qa2 71. Kb4 Qfc4#) 67. Kxf2 h1=Q (67... h1=R 68. Kg2 Re1 69. Kg3 Rf1 70. Kg4 Rg1+ 71. Kh4 Kf3 72. Kh5 Kf4 73. Kh6 Kf5 74. Kh7 Kf6 75. Kh8 Kf7 76. Kh7 Rh1#) 68. Kg3 Qg1+ 69. Kh4 Kf4 70. Kh5 Qg5#) 48. Nc7 $11 {[%emt 0:00:02]} Kxc4 {[%emt 0:00:01]} 49. Ne6 {[%emt 0:00:01]} Kd5 {[%emt 0:00:03]} 50. Ng7 {[%emt 0:00:02]} Ke4 {[%emt 0:00:01]} 51. Nxh5 {[%emt 0:00:01]} 1-0